fUSD/lending_fUSD_20250330
["ID","MTS","AMOUNT","RATE_DAILY","PERIOD"]
[356868144,1743346252502,-500.0,0.00050136,120]
[356868145,1743346252511,-500.0,0.00050136,120]
[356868146,1743346252520,-500.0,0.00050136,120]
[356868147,1743346252530,-500.0,0.00050136,120]
[356868148,1743346252539,-500.0,0.00050136,120]
[356868149,1743346252548,-500.0,0.00050136,120]
[356868150,1743346252558,-500.0,0.00050136,120]
[356868151,1743346252567,-500.0,0.00050136,120]
[356868152,1743346252576,-500.0,0.00050136,120]
[356868153,1743346252586,-1628.66,0.00050136,120]
[356868154,1743346252595,-500.0,0.00050136,120]
[356868155,1743346252605,-500.0,0.00050136,120]
[356868156,1743346252614,-511.95402821,0.00050136,120]
[356868157,1743346252623,-500.0,0.00050136,120]
[356868158,1743346252633,-500.0,0.00050136,120]
[356868159,1743346252642,-261.27865903,0.00050136,120]
[356868160,1743346252651,-500.0,0.00050136,120]
[356868161,1743346252661,-500.0,0.00050136,120]
[356868162,1743346252670,-500.0,0.00050136,120]
[356868163,1743346252680,-500.0,0.00050136,120]
[356868164,1743346252690,-2681.66,0.00050136,120]
[356868165,1743346252700,-500.0,0.00050136,120]
[356868166,1743346252709,-500.0,0.00050136,120]
[356868167,1743346252718,-572.27736783,0.00050136,120]
[356868168,1743346252727,-500.0,0.0005041,120]
[356868169,1743346252736,-500.0,0.0005041,120]
[356868170,1743346252746,-808.39,0.0005041,120]
[356868171,1743346252755,-1090.28,0.0005041,120]
[356868172,1743346252764,-500.0,0.0005041,120]
[356868173,1743346252773,-2456.74,0.0005041,120]
[356868174,1743346252782,-500.0,0.0005041,120]
[356868175,1743346252791,-500.0,0.0005041,120]
[356868176,1743346252801,-500.0,0.0005041,120]
[356868177,1743346252809,-273.29280502,0.0005041,120]
[356868178,1743346252819,-500.0,0.0005041,120]
[356868179,1743346252829,-500.0,0.0005041,120]
[356868180,1743346252838,-175.56957666,0.0005041,120]
[356868181,1743346252847,-500.0,0.0005041,120]
[356868182,1743346252856,-589.26,0.0005041,120]
[356868183,1743346252865,-500.0,0.0005041,120]
[356868184,1743346252874,-500.0,0.0005041,120]
[356868185,1743346252883,-500.0,0.0005041,120]
[356868186,1743346252892,-500.0,0.0005041,120]
[356868187,1743346252901,-500.0,0.0005041,120]
[356868188,1743346252910,-2232.9,0.0005041,120]
[356868189,1743346252922,-500.0,0.0005041,120]
[356868190,1743346252931,-699.29,0.0005041,120]
[356868191,1743346252940,-500.0,0.0005041,120]
[356868192,1743346252950,-456.45884742,0.0005041,120]
[356868193,1743346252959,-500.0,0.0005041,120]
[356868194,1743346252968,-500.0,0.0005041,120]
[356868195,1743346252978,-500.0,0.0005041,120]
[356868196,1743346252987,-461.96727012,0.0005041,120]
[356868197,1743346252998,-500.0,0.0005041,120]
[356868198,1743346253007,-500.0,0.0005041,120]
[356868199,1743346253016,-234.24,0.0005041,7]
[356868200,1743346253026,-500.0,0.0005041,120]
[356868201,1743346253035,-500.0,0.0005041,120]
[356868202,1743346253044,-506.44,0.0005041,120]
[356868203,1743346253054,-266.83645355,0.0005041,120]
[356868204,1743346253063,-500.0,0.0005041,120]
[356868205,1743346253072,-500.0,0.0005041,120]
[356868206,1743346253084,-500.0,0.0005041,120]
[356868207,1743346253094,-202.10803721,0.0005041,120]
[356868208,1743346253103,-500.0,0.0005041,120]
[356868209,1743346253112,-500.0,0.0005041,120]
[356868210,1743346253120,-378.61742327,0.0005041,120]
[356868211,1743346253130,-732.51,0.0005041,120]
[356868212,1743346253139,-2815.39,0.0005041,120]
[356868213,1743346253147,-500.0,0.0005041,120]
[356868214,1743346253157,-500.0,0.0005041,120]
[356868215,1743346253166,-500.0,0.0005041,120]
[356868216,1743346253175,-500.0,0.0005041,120]
[356868217,1743346253185,-500.0,0.0005041,120]
[356868218,1743346253195,-1274.94,0.0005041,120]
[356868219,1743346253204,-500.0,0.0005041,120]
[356868220,1743346253213,-500.0,0.0005041,120]
[356868221,1743346253222,-500.0,0.0005041,120]
[356868222,1743346253232,-500.0,0.0005041,120]
[356868223,1743346253241,-500.0,0.0005041,120]
[356868224,1743346253250,-1080.01,0.0005041,100]
[356868225,1743346253259,-500.0,0.0005041,120]
[356868226,1743346253268,-503.33,0.0005041,120]
[356868227,1743346253277,-500.0,0.0005041,120]
[356868228,1743346253287,-500.0,0.0005041,120]
[356868229,1743346253296,-500.0,0.0005041,120]
[356868230,1743346253305,-500.0,0.0005041,120]
[356868231,1743346253314,-500.0,0.0005041,120]
[356868232,1743346253323,-500.0,0.0005041,120]
[356868233,1743346253332,-500.0,0.0005041,120]
[356868234,1743346253342,-500.0,0.0005041,120]
[356868235,1743346253351,-500.0,0.0005041,120]
[356868236,1743346253360,-501.06,0.0005041,120]
[356868237,1743346253370,-500.0,0.0005041,120]
[356868238,1743346253379,-512.55,0.0005041,120]
[356868239,1743346253389,-500.0,0.0005041,120]
[356868240,1743346253398,-5054.95,0.0005041,120]
[356868241,1743346253407,-500.0,0.0005041,120]
[356868242,1743346253416,-1035.75,0.0005041,120]
[356868243,1743346253426,-500.0,0.0005041,120]
[356868244,1743346253435,-500.0,0.0005041,120]
[356868245,1743346253445,-500.0,0.0005041,120]
[356868246,1743346253455,-500.0,0.0005041,120]
[356868247,1743346253464,-500.0,0.0005041,120]
[356868248,1743346253474,-935.26,0.0005041,120]
[356868249,1743346253484,-1671.16,0.0005041,120]
[356868250,1743346253584,-500.0,0.0005041,120]
[356868251,1743346253606,-500.0,0.0005041,120]
[356868252,1743346253615,-1184.02,0.0005041,120]
[356868253,1743346253625,-500.0,0.0005041,120]
[356868254,1743346253635,-500.0,0.0005041,120]
[356868255,1743346253645,-289.20913355,0.0005041,120]
[356868256,1743346253655,-804.42,0.0005041,120]
[356868257,1743346253664,-500.0,0.0005041,120]
[356868258,1743346253674,-500.0,0.0005041,120]
[356868259,1743346253683,-500.0,0.0005041,120]
[356868260,1743346253693,-500.0,0.0005041,120]
[356868261,1743346253703,-225.60300282,0.0005041,120]
[356868262,1743346253712,-500.0,0.0005041,120]
[356868263,1743346253722,-500.0,0.0005041,120]
[356868264,1743346253732,-500.0,0.0005041,120]
[356868265,1743346253741,-1247.17,0.0005041,120]
[356868266,1743346253752,-500.0,0.0005041,120]
[356868267,1743346253762,-500.0,0.0005041,120]
[356868268,1743346253772,-351.83744012,0.0005041,120]
[356868269,1743346253782,-570.69646944,0.0005041,120]
[356868270,1743346253792,-500.0,0.0005041,120]
[356868271,1743346253802,-500.0,0.0005041,120]
[356868272,1743346253812,-500.0,0.0005041,120]
[356868273,1743346253822,-500.0,0.0005041,120]
[356868274,1743346253831,-500.0,0.0005041,120]
[356868275,1743346253840,-500.0,0.0005041,120]
[356868276,1743346253850,-500.0,0.0005041,120]
[356868277,1743346253859,-500.0,0.0005041,120]
[356868278,1743346253869,-3995.83,0.0005041,120]
[356868279,1743346253878,-500.0,0.0005041,120]
[356868280,1743346253888,-500.0,0.0005041,120]
[356868281,1743346253898,-500.0,0.0005041,120]
[356868282,1743346253907,-551.86,0.0005041,120]
[356868283,1743346253920,-500.0,0.0005041,120]
[356868284,1743346253930,-500.0,0.0005041,120]
[356868285,1743346253941,-500.0,0.0005041,120]
[356868286,1743346253950,-500.0,0.0005041,120]
[356868287,1743346253961,-1144.31,0.0005041,120]
[356868288,1743346253971,-500.0,0.0005041,120]
[356868289,1743346253982,-309.46397686,0.0005041,120]
[356868290,1743346253993,-500.0,0.0005041,120]
[356868291,1743346254004,-500.0,0.0005041,120]
[356868292,1743346254013,-500.0,0.0005041,120]
[356868293,1743346254023,-5469.89,0.0005041,120]
[356868294,1743346254033,-500.0,0.0005041,120]
[356868295,1743346254042,-500.0,0.0005041,120]
[356868296,1743346254052,-500.0,0.0005041,120]
[356868297,1743346254062,-634.12,0.0005041,120]
[356868298,1743346254072,-500.0,0.0005041,120]
[356868299,1743346254082,-500.0,0.0005041,120]
[356868300,1743346254092,-271.64054515,0.0005041,120]
[356868301,1743346254102,-500.0,0.0005041,120]
[356868302,1743346254111,-500.0,0.0005041,120]
[356868303,1743346254121,-765.27,0.0005041,120]
[356868304,1743346254131,-553.68,0.0005041,120]
[356868305,1743346254140,-500.0,0.0005041,120]
[356868306,1743346254151,-500.0,0.0005041,120]
[356868307,1743346254160,-500.0,0.0005041,120]
[356868308,1743346254170,-500.0,0.0005041,120]
[356868309,1743346254180,-500.0,0.0005041,120]
[356868310,1743346254189,-1194.86,0.0005041,120]
[356868311,1743346254199,-1492.47,0.0005041,120]
[356868312,1743346254208,-608.84575076,0.0005041,120]
[356868313,1743346254217,-500.0,0.0005041,120]
[356868314,1743346254227,-1345.57,0.0005041,120]
[356868315,1743346254236,-634.73,0.0005041,120]
[356868316,1743346254246,-500.0,0.0005041,120]
[356868317,1743346254255,-542.75,0.0005041,120]
[356868318,1743346254264,-500.0,0.0005041,120]
[356868319,1743346254274,-942.51,0.0005041,120]
[356868320,1743346254283,-1289.53,0.0005041,7]
[356868321,1743346254293,-500.0,0.0005041,120]
[356868322,1743346254303,-2763.1,0.0005041,120]
[356868323,1743346254312,-521.18,0.0005041,120]
[356868324,1743346254322,-500.0,0.0005041,120]
[356868325,1743346254331,-3033.67,0.0005041,120]
[356868326,1743346254340,-554.48828345,0.0005041,120]
[356868327,1743346254350,-632.21133997,0.0005041,120]
[356868328,1743346254359,-500.0,0.0005041,120]
[356868329,1743346254369,-500.0,0.0005041,120]
[356868330,1743346254379,-500.0,0.0005041,120]
[356868331,1743346254388,-500.0,0.0005041,120]
[356868332,1743346254398,-500.0,0.0005041,120]
[356868333,1743346254407,-261.29261787,0.0005041,120]
[356868334,1743346254416,-500.0,0.0005041,120]
[356868335,1743346254426,-500.0,0.0005041,120]
[356868336,1743346254435,-584.2261268,0.0005041,120]
[356868337,1743346254445,-151.0,0.0005041,120]
[356868338,1743346254455,-500.0,0.0005041,120]
[356868339,1743346254464,-500.0,0.0005041,120]
[356868340,1743346254474,-1628.66,0.0005041,120]
[356868341,1743346254483,-500.0,0.0005041,120]
[356868342,1743346254492,-500.0,0.0005041,120]
[356868343,1743346254502,-500.0,0.0005041,120]
[356868344,1743346254511,-500.0,0.0005041,120]
[356868345,1743346254521,-500.0,0.0005041,120]
[356868346,1743346254531,-500.0,0.0005041,120]
[356868347,1743346254540,-500.0,0.0005041,120]
[356868348,1743346254550,-500.0,0.0005041,120]
[356868349,1743346254559,-2681.66,0.0005041,120]
[356868350,1743346254569,-500.0,0.0005041,120]
[356868351,1743346254578,-500.0,0.0005041,120]
[356868352,1743346254587,-500.0,0.00050684,120]
[356868353,1743346254597,-500.0,0.00050684,120]
[356868354,1743346254606,-808.39,0.00050684,120]
[356868355,1743346254616,-1090.28,0.00050684,120]
[356868356,1743346254626,-500.0,0.00050684,120]
[356868357,1743346254635,-2456.74,0.00050684,120]
[356868358,1743346254644,-500.0,0.00050684,120]
[356868359,1743346254654,-500.0,0.00050684,120]
[356868360,1743346254663,-500.0,0.00050684,120]
[356868361,1743346254673,-500.0,0.00050684,120]
[356868362,1743346254682,-500.0,0.00050684,120]
[356868363,1743346254692,-500.0,0.00050684,120]
[356868364,1743346254702,-589.26,0.00050684,120]
[356868365,1743346254711,-408.35116412,0.00050684,120]
[356868366,1743346254720,-500.0,0.00050684,120]
[356868367,1743346254729,-500.0,0.00050684,120]
[356868368,1743346254739,-500.0,0.00050684,120]
[356868369,1743346254749,-500.0,0.00050684,120]
[356868370,1743346254759,-2232.9,0.00050684,120]
[356868371,1743346254769,-500.0,0.00050684,120]
[356868372,1743346254778,-699.29,0.00050684,120]
[356868373,1743346254787,-500.0,0.00050684,120]
[356868374,1743346254797,-500.0,0.00050684,120]
[356868375,1743346254807,-500.0,0.00050684,120]
[356868376,1743346254816,-500.0,0.00050684,120]
[356868377,1743346254826,-500.0,0.00050684,120]
[356868378,1743346254835,-451.05737824,0.00050684,120]
[356868379,1743346254845,-234.24,0.00050684,7]
[356868380,1743346254855,-500.0,0.00050684,120]
[356868381,1743346254864,-500.0,0.00050684,120]
[356868382,1743346254874,-506.44,0.00050684,120]
[356868383,1743346254883,-500.0,0.00050684,120]
[356868384,1743346254893,-500.0,0.00050684,120]
[356868385,1743346254902,-500.0,0.00050684,120]
[356868386,1743346254911,-500.0,0.00050684,120]
[356868387,1743346254924,-500.0,0.00050684,120]
[356868388,1743346254933,-732.51,0.00050684,120]
[356868389,1743346254943,-2815.39,0.00050684,120]
[356868390,1743346254953,-500.0,0.00050684,120]
[356868391,1743346254963,-500.0,0.00050684,120]
[356868392,1743346254973,-500.0,0.00050684,120]
[356868393,1743346254982,-500.0,0.00050684,120]
[356868394,1743346254991,-292.91881557,0.00050684,120]
[356868395,1743346255002,-1274.94,0.00050684,120]
[356868396,1743346255011,-279.77336472,0.00050684,120]
[356868397,1743346255020,-500.0,0.00050684,120]
[356868398,1743346255030,-500.0,0.00050684,120]
[356868399,1743346255039,-500.0,0.00050684,120]
[356868400,1743346255048,-540.38531156,0.00050684,120]
[356868401,1743346255057,-1080.01,0.00050684,100]
[356868402,1743346255067,-500.0,0.00050684,120]
[356868403,1743346255077,-503.33,0.00050684,120]
[356868404,1743346255086,-553.14426575,0.00050684,120]
[356868405,1743346255096,-500.0,0.00050684,120]
[356868406,1743346255105,-500.0,0.00050684,120]
[356868407,1743346255115,-500.0,0.00050684,120]
[356868408,1743346255125,-500.0,0.00050684,120]
[356868409,1743346255134,-500.0,0.00050684,120]
[356868410,1743346255144,-605.84989274,0.00050684,120]
[356868411,1743346255154,-256.29628496,0.00050684,120]
[356868412,1743346255163,-500.0,0.00050684,120]
[356868413,1743346255173,-501.06,0.00050684,120]
[356868414,1743346255182,-500.0,0.00050684,120]
[356868415,1743346255192,-512.55,0.00050684,120]
[356868416,1743346255202,-600.57523535,0.00050684,120]
[356868417,1743346255212,-5054.95,0.00050684,120]
[356868418,1743346255221,-500.0,0.00050684,120]
[356868419,1743346255231,-1035.75,0.00050684,120]
[356868420,1743346255241,-500.0,0.00050684,120]
[356868421,1743346255251,-500.0,0.00050684,120]
[356868422,1743346255260,-500.0,0.00050684,120]
[356868423,1743346255269,-500.0,0.00050684,120]
[356868424,1743346255279,-500.0,0.00050684,120]
[356868425,1743346255288,-935.26,0.00050684,120]
[356868426,1743346255298,-1671.16,0.00050684,120]
[356868427,1743346255307,-181.98293932,0.00050684,120]
[356868428,1743346255316,-500.0,0.00050684,120]
[356868429,1743346255326,-1184.02,0.00050684,120]
[356868430,1743346255335,-500.0,0.00050684,120]
[356868431,1743346255345,-500.0,0.00050684,120]
[356868432,1743346255354,-804.42,0.00050684,120]
[356868433,1743346255363,-500.0,0.00050684,120]
[356868434,1743346255372,-500.0,0.00050684,120]
[356868435,1743346255381,-500.0,0.00050684,120]
[356868436,1743346255391,-500.0,0.00050684,120]
[356868437,1743346255505,-512.48074808,0.00050684,120]
[356868438,1743346255515,-500.0,0.00050684,120]
[356868439,1743346255530,-500.0,0.00050684,120]
[356868440,1743346255540,-1247.17,0.00050684,120]
[356868441,1743346255550,-500.0,0.00050684,120]
[356868442,1743346255560,-500.0,0.00050684,120]
[356868443,1743346255570,-500.0,0.00050684,120]
[356868444,1743346255580,-491.99415,0.00050684,120]
[356868445,1743346255589,-500.0,0.00050684,120]
[356868446,1743346255599,-500.0,0.00050684,120]
[356868447,1743346255609,-500.0,0.00050684,120]
[356868448,1743346255620,-500.0,0.00050684,120]
[356868449,1743346255633,-500.0,0.00050684,120]
[356868450,1743346255643,-500.0,0.00050684,120]
[356868451,1743346255653,-3995.83,0.00050684,120]
[356868452,1743346255663,-500.0,0.00050684,120]
[356868453,1743346255674,-500.0,0.00050684,120]
[356868454,1743346255684,-500.0,0.00050684,120]
[356868455,1743346255694,-551.86,0.00050684,120]
[356868457,1743346255704,-500.0,0.00050684,120]
[356868458,1743346255714,-500.0,0.00050684,120]
[356868459,1743346255723,-500.0,0.00050684,120]
[356868460,1743346255734,-406.74933596,0.00050684,120]
[356868461,1743346255743,-1144.31,0.00050684,120]
[356868462,1743346255754,-500.0,0.00050684,120]
[356868463,1743346255763,-500.0,0.00050684,120]
[356868464,1743346255773,-500.0,0.00050684,120]
[356868465,1743346255783,-500.0,0.00050684,120]
[356868466,1743346255792,-5469.89,0.00050684,120]
[356868467,1743346255803,-500.0,0.00050684,120]
[356868468,1743346255813,-500.0,0.00050684,120]
[356868469,1743346255823,-500.0,0.00050684,120]
[356868470,1743346255833,-634.12,0.00050684,120]
[356868471,1743346255843,-500.0,0.00050684,120]
[356868472,1743346255852,-500.0,0.00050684,120]
[356868473,1743346255862,-500.0,0.00050684,120]
[356868474,1743346255871,-500.0,0.00050684,120]
[356868475,1743346255882,-765.27,0.00050684,120]
[356868476,1743346255892,-553.68,0.00050684,120]
[356868477,1743346255901,-500.0,0.00050684,120]
[356868478,1743346255911,-500.0,0.00050684,120]
[356868479,1743346255926,-500.0,0.00050684,120]
[356868480,1743346255936,-500.0,0.00050684,120]
[356868481,1743346255946,-500.0,0.00050684,120]
[356868482,1743346255956,-1194.86,0.00050684,120]
[356868483,1743346255966,-1492.47,0.00050684,120]
[356868484,1743346255976,-500.0,0.00050684,120]
[356868485,1743346255986,-634.73,0.00050684,120]
[356868486,1743346255998,-1345.57,0.00050684,120]
[356868487,1743346256008,-500.0,0.00050684,120]
[356868488,1743346256018,-542.75,0.00050684,120]
[356868489,1743346256028,-500.0,0.00050684,120]
[356868490,1743346256038,-942.51,0.00050684,120]
[356868491,1743346256048,-1289.53,0.00050684,7]
[356868492,1743346256058,-500.0,0.00050684,120]
[356868493,1743346256068,-2763.1,0.00050684,120]
[356868494,1743346256078,-500.0,0.00050684,120]
[356868495,1743346256088,-521.18,0.00050684,120]
[356868496,1743346256098,-3033.67,0.00050684,120]
[356868497,1743346256108,-500.0,0.00050684,120]
[356868498,1743346256117,-573.26347245,0.00050684,120]
[356868499,1743346256127,-500.0,0.00050684,120]
[356868500,1743346256137,-500.0,0.00050684,120]
[356868501,1743346256147,-176.53038012,0.00050684,120]
[356868502,1743346256157,-500.0,0.00050684,120]
[356868503,1743346256167,-500.0,0.00050684,120]
[356868504,1743346256177,-500.0,0.00050684,120]
[356868505,1743346256187,-500.0,0.00050684,120]
[356868506,1743346256197,-1628.66,0.00050684,120]
[356868507,1743346256207,-500.0,0.00050684,120]
[356868508,1743346256218,-500.0,0.00050684,120]
[356868509,1743346256227,-500.0,0.00050684,120]
[356868510,1743346256237,-492.12307828,0.00050684,120]
[356868511,1743346256246,-500.0,0.00050684,120]
[356868512,1743346256256,-500.0,0.00050684,120]
[356868513,1743346256266,-500.0,0.00050684,120]
[356868514,1743346256276,-542.49821576,0.00050684,120]
[356868515,1743346256285,-2681.66,0.00050684,120]
[356868516,1743346256294,-500.0,0.00050684,120]
[356868517,1743346256304,-500.0,0.00050684,120]
[356868518,1743346256313,-156.84,0.000507,48]
[356868519,1743346256323,-156.84,0.000507,48]
[356868520,1743346256332,-500.0,0.00050958,120]
[356868521,1743346256342,-500.0,0.00050958,120]
[356868522,1743346256351,-808.39,0.00050958,120]
[356868523,1743346256362,-1090.28,0.00050958,120]
[356868524,1743346256371,-500.0,0.00050958,120]
[356868525,1743346256380,-2456.74,0.00050958,120]
[356868526,1743346256390,-500.0,0.00050958,120]
[356868527,1743346256399,-500.0,0.00050958,120]
[356868528,1743346256409,-470.49803418,0.00050958,120]
[356868529,1743346256418,-500.0,0.00050958,120]
[356868530,1743346256428,-500.0,0.00050958,120]
[356868531,1743346256438,-500.0,0.00050958,120]
[356868532,1743346256447,-589.26,0.00050958,120]
[356868533,1743346256457,-500.0,0.00050958,120]
[356868534,1743346256466,-500.0,0.00050958,120]
[356868535,1743346256476,-500.0,0.00050958,120]
[356868536,1743346256486,-500.0,0.00050958,120]
[356868537,1743346256495,-2232.9,0.00050958,120]
[356868538,1743346256505,-500.0,0.00050958,120]
[356868539,1743346256514,-699.29,0.00050958,120]
[356868540,1743346256524,-500.0,0.00050958,120]
[356868541,1743346256534,-510.12449637,0.00050958,120]
[356868542,1743346256544,-500.0,0.00050958,120]
[356868543,1743346256554,-500.0,0.00050958,120]
[356868544,1743346256564,-500.0,0.00050958,120]
[356868545,1743346256573,-234.24,0.00050958,7]
[356868546,1743346256583,-500.0,0.00050958,120]
[356868547,1743346256593,-367.45956365,0.00050958,120]
[356868548,1743346256602,-506.44,0.00050958,120]
[356868549,1743346256612,-500.0,0.00050958,120]
[356868550,1743346256623,-500.0,0.00050958,120]
[356868551,1743346256633,-500.0,0.00050958,120]
[356868552,1743346256643,-349.45586099,0.00050958,120]
[356868553,1743346256653,-500.0,0.00050958,120]
[356868554,1743346256663,-732.51,0.00050958,120]
[356868555,1743346256672,-2815.39,0.00050958,120]
[356868556,1743346256682,-500.0,0.00050958,120]
[356868557,1743346256692,-500.0,0.00050958,120]
[356868558,1743346256701,-500.0,0.00050958,120]
[356868559,1743346256710,-500.0,0.00050958,120]
[356868560,1743346256720,-1274.94,0.00050958,120]
[356868561,1743346256730,-500.0,0.00050958,120]
[356868562,1743346256740,-500.0,0.00050958,120]
[356868563,1743346256749,-500.0,0.00050958,120]
[356868564,1743346256759,-1080.01,0.00050958,100]
[356868565,1743346256768,-500.0,0.00050958,120]
[356868566,1743346256778,-503.33,0.00050958,120]
[356868567,1743346256788,-500.0,0.00050958,120]
[356868568,1743346256798,-500.0,0.00050958,120]
[356868569,1743346256808,-384.24065638,0.00050958,120]
[356868570,1743346256817,-500.0,0.00050958,120]
[356868571,1743346256827,-500.0,0.00050958,120]
[356868572,1743346256836,-500.0,0.00050958,120]
[356868573,1743346256847,-501.06,0.00050958,120]
[356868574,1743346256856,-500.0,0.00050958,120]
[356868575,1743346256866,-512.55,0.00050958,120]
[356868576,1743346256876,-5054.95,0.00050958,120]
[356868577,1743346256885,-500.0,0.00050958,120]
[356868578,1743346256894,-1035.75,0.00050958,120]
[356868579,1743346256903,-500.0,0.00050958,120]
[356868580,1743346256913,-500.0,0.00050958,120]
[356868581,1743346256925,-500.0,0.00050958,120]
[356868582,1743346256935,-500.0,0.00050958,120]
[356868583,1743346256946,-500.0,0.00050958,120]
[356868584,1743346256957,-935.26,0.00050958,120]
[356868585,1743346256968,-1671.16,0.00050958,120]
[356868586,1743346256977,-524.41641682,0.00050958,120]
[356868587,1743346256987,-1184.02,0.00050958,120]
[356868588,1743346256998,-500.0,0.00050958,120]
[356868589,1743346257007,-500.0,0.00050958,120]
[356868590,1743346257017,-804.42,0.00050958,120]
[356868591,1743346257027,-500.0,0.00050958,120]
[356868592,1743346257036,-500.0,0.00050958,120]
[356868593,1743346257046,-460.59199702,0.00050958,120]
[356868594,1743346257056,-500.0,0.00050958,120]
[356868595,1743346257067,-500.0,0.00050958,120]
[356868596,1743346257076,-500.0,0.00050958,120]
[356868597,1743346257086,-1247.17,0.00050958,120]
[356868598,1743346257096,-500.0,0.00050958,120]
[356868599,1743346257106,-500.0,0.00050958,120]
[356868600,1743346257116,-500.0,0.00050958,120]
[356868601,1743346257125,-500.0,0.00050958,120]
[356868602,1743346257135,-500.0,0.00050958,120]
[356868603,1743346257145,-500.0,0.00050958,120]
[356868604,1743346257154,-500.0,0.00050958,120]
[356868605,1743346257163,-500.0,0.00050958,120]
[356868606,1743346257172,-500.0,0.00050958,120]
[356868607,1743346257182,-3995.83,0.00050958,120]
[356868608,1743346257283,-500.0,0.00050958,120]
[356868609,1743346257294,-500.0,0.00050958,120]
[356868610,1743346257303,-500.0,0.00050958,120]
[356868611,1743346257313,-551.86,0.00050958,120]
[356868612,1743346257322,-500.0,0.00050958,120]
[356868613,1743346257332,-448.40162024,0.00050958,120]
[356868614,1743346257341,-500.0,0.00050958,120]
[356868615,1743346257351,-1144.31,0.00050958,120]
[356868616,1743346257360,-500.0,0.00050958,120]
[356868617,1743346257369,-184.11114284,0.00050958,120]
[356868618,1743346257379,-500.0,0.00050958,120]
[356868619,1743346257388,-500.0,0.00050958,120]
[356868620,1743346257398,-5469.89,0.00050958,120]
[356868621,1743346257408,-500.0,0.00050958,120]
[356868622,1743346257418,-500.0,0.00050958,120]
[356868623,1743346257427,-500.0,0.00050958,120]
[356868624,1743346257436,-634.12,0.00050958,120]
[356868625,1743346257447,-500.0,0.00050958,120]
[356868626,1743346257456,-500.0,0.00050958,120]
[356868627,1743346257465,-500.0,0.00050958,120]
[356868628,1743346257475,-500.0,0.00050958,120]
[356868629,1743346257484,-765.27,0.00050958,120]
[356868630,1743346257494,-553.68,0.00050958,120]
[356868631,1743346257503,-184.77206613,0.00050958,120]
[356868632,1743346257513,-500.0,0.00050958,120]
[356868633,1743346257523,-511.91075028,0.00050958,120]
[356868634,1743346257532,-500.0,0.00050958,120]
[356868635,1743346257542,-241.60760902,0.00050958,120]
[356868636,1743346257551,-1194.86,0.00050958,120]
[356868637,1743346257560,-1492.47,0.00050958,120]
[356868638,1743346257570,-500.0,0.00050958,120]
[356868639,1743346257580,-1345.57,0.00050958,120]
[356868640,1743346257589,-634.73,0.00050958,120]
[356868641,1743346257599,-500.0,0.00050958,120]
[356868642,1743346257609,-542.75,0.00050958,120]
[356868643,1743346257618,-500.0,0.00050958,120]
[356868644,1743346257628,-942.51,0.00050958,120]